fUSD/lending_fUSD_20240118
["ID","MTS","AMOUNT","RATE_DAILY","PERIOD"]
[312075843,1705601443899,-4389.16342,0.000277,2]
[312075844,1705601443908,-30609.0,0.00027714,2]
[312075845,1705601443919,-871.39,0.00027738,2]
[312075846,1705601443928,-1234.0,0.00027756,2]
[312075847,1705601443937,-383.564,0.00027756,2]
[312075848,1705601443946,-319.0,0.00027756,2]
[312075849,1705601443955,-1138.0,0.00027756,2]
[312075850,1705601443964,-361.86,0.00027766,2]
[312075851,1705601443974,-200.0,0.00027776,3]
[312075852,1705601443983,-4436.131,0.00027809,2]
[312075853,1705601443993,-4175.0,0.00027809,2]
[312075854,1705601444002,-2273.0,0.00027809,2]
[312075855,1705601444011,-19705.0,0.00027809,2]
[312075856,1705601444020,-2905.0,0.00027809,2]
[312075857,1705601444030,-1029.0,0.00027809,2]
[312075858,1705601444244,-30609.0,0.00027872,2]
[312075859,1705601444255,-946.0,0.00027939,2]
[312075860,1705601444264,-836.0,0.00027939,2]
[312075861,1705601444273,-822.777,0.00027939,2]
[312075862,1705601444283,-688.79473801,0.00028,2]
[312075863,1705601444293,-203.0550109,0.00028,2]
[312075864,1705601444302,-1400.0,0.00028,3]
[312075865,1705601444313,-332.33,0.00028011,2]
[312075866,1705601444324,-30609.0,0.0002803,2]
[312075867,1705601444334,-150.0,0.00028118,2]
[312075868,1705601444345,-30609.0,0.00028189,2]
[312075869,1705601444355,-58000.0,0.0002821,2]
[312075870,1705601444366,-9570.82368886,0.00028219,2]
[312075871,1705601444376,-54014.90812689,0.00028219,2]
[312075872,1705601444391,-58000.0,0.00028219,2]
[312075873,1705601444402,-3985.09187311,0.00028219,2]
[312075874,1705601444413,-167.36,0.00028307,2]
[312075875,1705601444423,-167.0,0.00028307,2]
[312075876,1705601444432,-30609.0,0.00028347,2]
[312075877,1705601444441,-161.83772009,0.00028353,2]
[312075878,1705601444450,-30609.0,0.00028505,2]
[312075879,1705601444459,-210.0,0.00028573,12]
[312075880,1705601444469,-672.06,0.00028579,2]
[312075881,1705601444478,-203.0,0.0002866,2]
[312075882,1705601444487,-203.0,0.0002866,2]
[312075883,1705601444496,-168.4156615,0.00028663,2]
[312075884,1705601444506,-30609.0,0.00028664,2]
[312075885,1705601444516,-462.35,0.00028666,2]
[312075886,1705601444526,-209.0,0.00028686,2]
[312075887,1705601444536,-871.39,0.00028716,2]
[312075888,1705601444546,-155.0,0.00028767,2]
[312075889,1705601444558,-1568.59084043,0.00028786,7]
[312075890,1705601444567,-7753.58685027,0.00028786,7]
[312075891,1705601444576,-1986.3271315,0.00028786,7]
[312075892,1705601444586,-1068.65798741,0.00028786,7]
[312075893,1705601444595,-188.6886305,0.00028786,4]
[312075894,1705601444605,-162.10125484,0.00028786,4]
[312075895,1705601444614,-788.25002002,0.00028786,7]
[312075896,1705601444624,-1124.96963276,0.00028786,7]
[312075897,1705601444633,-323.05429061,0.00028786,7]
[312075898,1705601444642,-184.58229394,0.00028786,4]
[312075899,1705601444653,-910.95731591,0.00028786,7]
[312075900,1705601444661,-1247.12371951,0.00028786,7]
[312075901,1705601444674,-8000.0,0.000288,2]
[312075902,1705601444685,-30609.0,0.00028822,2]
[312075903,1705601444695,-150.0,0.00028839,2]
[312075904,1705601444704,-1836.5518429,0.00029,5]
[312075905,1705601444714,-326.24525782,0.00029,2]
[312075906,1705601444724,-160.35028919,0.00029,2]
[312075907,1705601444733,-12127.12831044,0.00029,2]
[312075908,1705601444742,-500.0,0.00029087,2]
[312075909,1705601444752,-74623.60522427,0.000291,2]
[312075910,1705601444762,-152.0,0.000291,2]
[312075911,1705601444771,-151.0,0.00029128,7]
[312075912,1705601444781,-151.0,0.00029128,7]
[312075913,1705601444791,-151.0,0.00029128,7]
[312075914,1705601444800,-8579.77094994,0.00029128,7]
[312075915,1705601444810,-6933.5036183,0.00029128,7]
[312075916,1705601444820,-9273.41414498,0.00029128,7]
[312075917,1705601444830,-3995.58136516,0.00029128,7]
[312075918,1705601444839,-3742.45773674,0.00029128,7]
[312075919,1705601444849,-476.3,0.00029416,2]
[312075920,1705601444858,-155.0,0.000295,3]
[312075921,1705601444868,-550.98907247,0.000295,2]
[312075922,1705601444878,-150.0,0.0002956,2]
[312075923,1705601444888,-871.39,0.00029695,2]
[312075924,1705601444897,-161.83772009,0.00029717,2]
[312075925,1705601444906,-8089.00065605,0.00029798,5]
[312075926,1705601444917,-201.72079495,0.000298,2]
[312075927,1705601444926,-175.50184765,0.000298,2]
[312075928,1705601444936,-47594.53389329,0.000298,2]
[312075929,1705601444945,-1403.07097878,0.000298,2]
[312075930,1705601444955,-203.0,0.0002985,2]
[312075931,1705601444964,-203.0,0.0002985,2]
[312075932,1705601444974,-300.0,0.00029899,2]
[312075933,1705601444983,-500.0,0.00029899,2]
[312075934,1705601444992,-500.0,0.00029899,2]
[312075935,1705601445001,-500.0,0.00029899,2]
[312075936,1705601445011,-500.0,0.00029899,2]
[312075937,1705601445020,-500.0,0.00029899,2]
[312075938,1705601445029,-500.0,0.00029899,2]
[312075939,1705601445038,-500.0,0.00029899,2]
[312075940,1705601445049,-500.0,0.00029899,2]
[312075941,1705601445058,-500.0,0.00029899,2]
[312075942,1705601445071,-500.0,0.00029899,2]
[312075943,1705601445080,-500.0,0.00029899,2]
[312075944,1705601445090,-500.0,0.00029899,2]
[312075945,1705601445099,-500.0,0.00029899,2]
[312075946,1705601445108,-71102.46512438,0.000299,2]
[312075947,1705601445118,-6153.21200019,0.000299,2]
[312075948,1705601445127,-155.0,0.000299,2]
[312075949,1705601445137,-2188.37366317,0.000299,2]
[312075950,1705601445149,-44223.605245,0.00029959,2]
[312075951,1705601445159,-3350.4293599,0.00029959,2]
[312075952,1705601445171,-6384.89405742,0.0002996,2]
[312075953,1705601445180,-282382.53834753,0.00029977,2]
[312075955,1705601445189,-2821.95,0.00029979,2]
[312075957,1705601445199,-168.4156615,0.00029979,2]
[312075958,1705601445208,-168.4156615,0.00029979,2]
[312075959,1705601445217,-168.4156615,0.00029979,2]
[312075960,1705601445227,-2868268.62136493,0.0002998,2]
[312075961,1705601445237,-151.0,0.0002998,7]
[312075962,1705601445246,-151.0,0.0002998,7]
[312075963,1705601445256,-257.07501899,0.00029997,3]
[312075964,1705601445266,-168.4156615,0.00029999,2]
[312075965,1705601445275,-100000.0,0.0003,2]
[312075966,1705601445284,-5765.47721263,0.0003,4]
[312075967,1705601445294,-1133.25840735,0.0003,2]
[312075968,1705601445303,-2552.9863992,0.0003,4]
[312075969,1705601445313,-2162.8756008,0.0003,4]
[312075970,1705601445323,-1505.30791281,0.0003,4]
[312075971,1705601445332,-155.0,0.0003,4]
[312075972,1705601445341,-19026.01005334,0.0003,4]
[312075973,1705601445350,-6860.89000775,0.0003,4]
[312075974,1705601445359,-72920.57629857,0.0003,4]
[312075975,1705601445368,-158.98643164,0.0003,4]
[312075976,1705601445377,-463.54889756,0.0003,4]
[312075977,1705601445386,-155.0,0.0003,2]
[312075978,1705601445395,-814.18421461,0.0003,4]
[312075980,1705601445405,-511.12474587,0.0003,2]
[312075982,1705601445414,-308857.21845126,0.0003,4]
[312075983,1705601445425,-8839.75155897,0.0003,4]
[312075984,1705601445434,-9637.69139965,0.0003,2]
[312075985,1705601445443,-582.53618936,0.0003,2]
[312075986,1705601445453,-2580.94083119,0.0003,4]
[312075987,1705601445462,-26670.81930233,0.0003,4]
[312075988,1705601445471,-155.0,0.0003,4]
[312075989,1705601445481,-905.41355492,0.0003,4]
[312075990,1705601445490,-309.8564897,0.0003,4]
[312075991,1705601445499,-324.2476199,0.0003,2]
[312075992,1705601445508,-319579.522567,0.0003,2]
[312075993,1705601445517,-1074.97178289,0.0003,2]
[312075994,1705601445526,-311.51713617,0.0003,2]
[312075995,1705601445535,-960.40050335,0.0003,3]
[312075996,1705601445545,-374.85495157,0.0003,4]
[312075997,1705601445554,-1450.0,0.0003,3]
[312075998,1705601445563,-770.36519149,0.0003,2]
[312075999,1705601445573,-1575.05989741,0.0003,2]
[312076000,1705601445581,-691.78118502,0.0003,2]
[312076001,1705601445590,-719.13898262,0.0003,2]
[312076002,1705601445600,-82000.0,0.0003,2]
[312076003,1705601445609,-155.6514434,0.0003,2]
[312076004,1705601445618,-152.48,0.0003,2]
[312076005,1705601445627,-157.81,0.0003,2]
[312076006,1705601445637,-157.81,0.0003,2]
[312076007,1705601445646,-157.81,0.0003,2]
[312076008,1705601445655,-3000.0,0.0003,2]
[312076009,1705601445666,-3000.0,0.0003,2]
[312076010,1705601445675,-3000.0,0.0003,2]
[312076011,1705601445684,-3000.0,0.0003,2]
[312076012,1705601445694,-3000.0,0.0003,2]
[312076013,1705601445703,-3000.0,0.0003,2]
[312076014,1705601445712,-1000.0,0.0003,2]
[312076015,1705601445721,-203.0,0.0003,2]
[312076016,1705601445730,-500.0,0.0003,2]
[312076017,1705601445739,-3092.4376417,0.00030058,2]
[312076018,1705601445749,-40871.529088,0.00030079,2]
[312076019,1705601445758,-156857.78627959,0.000301,2]
[312076020,1705601445768,-251.65794723,0.000301,4]
[312076021,1705601445777,-151.0,0.000301,7]
[312076022,1705601445785,-8000.0,0.000301,2]
[312076023,1705601445794,-1268.63,0.00030127,10]
[312076024,1705601445804,-5000.0,0.00030137,2]
[312076025,1705601445813,-153.84,0.00030137,2]
[312076026,1705601445822,-155.0,0.00030137,2]
[312076027,1705601445833,-152.0,0.000302,2]
[312076028,1705601445842,-200.0,0.00030256,3]
[312076029,1705601445851,-800.0,0.00030256,7]
[312076030,1705601445861,-332.33,0.00030275,2]
[312076031,1705601445870,-150.0,0.00030281,2]
[312076033,1705601445880,-871.39,0.00030673,2]
[312076034,1705601445889,-313.92,0.00030756,2]
[312076035,1705601445898,-1138.0,0.00030756,2]
[312076037,1705601445907,-1522.35,0.00030798,10]
[312076039,1705601445919,-1457.363,0.00030809,2]
[312076042,1705601445929,-2273.0,0.00030809,2]
[312076043,1705601445938,-13489.025,0.00030809,2]
[312076045,1705601445947,-2905.0,0.00030809,2]
[312076047,1705601445957,-1029.0,0.00030809,2]
[312076050,1705601445966,-15906.69975077,0.000309,2]
[312076051,1705601445976,-1583.97753021,0.000309,5]
[312076053,1705601445985,-944.0,0.00030939,2]
[312076055,1705601445994,-836.0,0.00030939,2]
[312076057,1705601446003,-210.0,0.0003099,16]
[312076059,1705601446013,-100000.0,0.00031,2]
[312076062,1705601446022,-7603.97614711,0.00031,2]
[312076065,1705601446032,-369.72670325,0.00031,2]
[312076068,1705601446041,-150.0,0.00031002,2]
[312076071,1705601446052,-203.0,0.0003105,2]
[312076074,1705601446061,-203.0,0.0003105,2]
[312076076,1705601446072,-153.84,0.0003105,2]
[312076078,1705601446081,-161.83772009,0.00031081,2]
[312076080,1705601446091,-672.06,0.00031177,2]
[312076082,1705601446100,-164.44,0.00031177,2]
[312076084,1705601446110,-462.35,0.00031272,2]
[312076086,1705601446120,-152.0,0.000313,2]
[312076088,1705601446129,-476.3,0.00031435,2]
[312076090,1705601446138,-1000.0,0.000315,2]
[312076092,1705601446149,-1000.0,0.000315,2]
[312076094,1705601446159,-8000.0,0.000315,2]
[312076096,1705601446170,-845.97,0.00031507,2]
[312076098,1705601446180,-155.0,0.00031507,2]
[312076100,1705601446190,-1097.34939693,0.00031527,2]
[312076102,1705601446199,-263.2,0.00031644,2]
[312076104,1705601446209,-871.39,0.00031652,2]
[312076106,1705601446219,-168.4156615,0.00031699,2]
[312076108,1705601446228,-177000.0,0.000317,2]
[312076110,1705601446238,-500.0,0.00031704,2]
[312076112,1705601446247,-150.0,0.00031723,2]
[312076114,1705601446256,-434607.478727,0.000318,3]
[312076116,1705601446266,-5000.0,0.0003189,2]
[312076118,1705601446276,-153.84,0.00031963,2]
[312076119,1705601446285,-100000.0,0.00032,2]
[312076120,1705601446295,-298.40382139,0.00032,4]
[312076121,1705601446304,-155.0,0.00032,4]
[312076122,1705601446314,-1490.0,0.00032,8]
[312076123,1705601446323,-2163.41572719,0.00032,4]
[312076124,1705601446333,-13073.17767594,0.00032,4]
[312076125,1705601446342,-1958.68841889,0.00032,2]
[312076126,1705601446351,-12651.69242894,0.00032,30]
[312076127,1705601446361,-1500.0,0.00032,3]
[312076128,1705601446370,-129596.82948976,0.00032,2]
[312076129,1705601446379,-1000.0,0.00032,3]
[312076130,1705601446389,-150.1,0.00032,2]
[312076131,1705601446397,-152.48,0.000322,2]
[312076132,1705601446407,-152.48,0.000322,2]
[312076133,1705601446418,-157.81,0.000322,2]
[312076134,1705601446427,-157.81,0.000322,2]
[312076135,1705601446436,-157.81,0.000322,2]
[312076136,1705601446446,-157.81,0.000322,2]
[312076137,1705601446455,-157.81,0.000322,2]
[312076138,1705601446466,-157.81,0.000322,2]
[312076139,1705601446476,-203.0,0.0003224,2]
[312076140,1705601446485,-203.0,0.0003224,2]
[312076141,1705601446495,-152.0,0.000324,2]
[312076142,1705601446504,-150.0,0.00032444,2]
[312076143,1705601446513,-161.83772009,0.00032445,2]
[312076144,1705601446523,-13003.75033823,0.0003245,2]
[312076145,1705601446532,-5000.0,0.00032454,4]
[312076146,1705601446542,-1000.0,0.000325,3]
[312076147,1705601446555,-1000.0,0.000325,2]
[312076148,1705601446565,-332.33,0.00032539,2]
[312076149,1705601446574,-621.59372413,0.0003254,2]
[312076150,1705601446584,-6845.91795514,0.00032546,2]
[312076151,1705601446593,-871.39,0.0003263,2]
[312076152,1705601446603,-500.0,0.00032876,7]
[312076153,1705601446613,-500.0,0.00032876,7]
[312076154,1705601446622,-506.6680063,0.00032876,7]
[312076155,1705601446632,-500.0,0.00032876,7]
[312076156,1705601446641,-532.48420526,0.00032876,7]
[312076157,1705601446650,-500.0,0.00032876,7]
[312076158,1705601446659,-500.0,0.00032876,7]
[312076159,1705601446673,-282.96084972,0.00032876,7]
[312076160,1705601446683,-500.0,0.00032876,7]
[312076161,1705601446693,-500.0,0.00032876,7]
[312076162,1705601446703,-500.0,0.00032876,7]
[312076163,1705601446712,-159.36321558,0.00032876,7]
[312076164,1705601446722,-500.0,0.00032876,7]
[312076165,1705601446731,-500.0,0.00032876,7]
[312076166,1705601446741,-500.0,0.00032876,7]
[312076167,1705601446751,-165.97637045,0.00032876,7]
[312076168,1705601446760,-500.0,0.00032876,7]
[312076169,1705601446770,-500.0,0.00032876,7]
[312076170,1705601446779,-500.0,0.00032876,7]
[312076171,1705601446789,-500.0,0.00032876,7]
[312076172,1705601446798,-500.0,0.00032876,7]
[312076173,1705601446807,-500.0,0.00032876,7]
[312076174,1705601446817,-500.0,0.00032876,7]
[312076175,1705601446827,-500.0,0.00032876,7]
[312076176,1705601446837,-500.0,0.00032876,7]
[312076177,1705601446847,-500.0,0.00032876,7]
[312076178,1705601446857,-500.0,0.00032876,7]
[312076179,1705601446866,-178.29608497,0.00032876,7]
[312076180,1705601446876,-500.0,0.00032876,7]
[312076181,1705601446885,-433.19527409,0.00032876,7]
[312076182,1705601446895,-153.84,0.00032877,2]
[312076183,1705601446904,-150.1,0.00032877,2]
[312076184,1705601446914,-1326.28,0.00032877,15]
[312076185,1705601446926,-155.0,0.00032877,2]
[312076186,1705601446935,-2000.0,0.000329,2]
[312076187,1705601446944,-300.0,0.000329,2]
[312076188,1705601446954,-1500.0,0.000329,2]
[312076189,1705601446964,-389.0,0.000329,2]
[312076190,1705601446974,-200.0,0.000329,2]
[312076191,1705601446983,-500.0,0.000329,2]
[312076192,1705601446993,-4101.90973898,0.000329,2]
[312076193,1705601447003,-411.0,0.000329,2]
[312076194,1705601447013,-5402.0,0.000329,2]
[312076195,1705601447023,-8000.0,0.000329,2]
[312076196,1705601447033,-168.4156615,0.00032999,2]
[312076197,1705601447043,-100000.0,0.00033,3]
[312076198,1705601447054,-155.0,0.00033,4]
[312076199,1705601447066,-958.41167477,0.00033,2]
[312076200,1705601447078,-259.22008777,0.00033,3]
[312076201,1705601447088,-9599.5726054,0.00033,6]
[312076202,1705601447098,-808.63730053,0.00033,2]
[312076203,1705601447108,-1147.27093694,0.00033,2]
[312076204,1705601447118,-1000.0,0.00033,3]
[312076205,1705601447128,-200.0,0.00033,2]
[312076206,1705601447137,-203.0,0.00033,2]
[312076207,1705601447147,-150.91,0.00033,2]
[312076208,1705601447157,-150.91,0.00033,2]
[312076209,1705601447170,-150.91,0.00033,2]
[312076210,1705601447180,-150.91,0.00033,2]
[312076211,1705601447191,-150.91,0.00033,2]
[312076212,1705601447201,-150.91,0.00033,2]
[312076213,1705601447211,-150.91,0.00033,2]
[312076214,1705601447221,-150.91,0.00033,2]
[312076215,1705601447230,-150.91,0.00033,2]
[312076216,1705601447239,-150.91,0.00033,2]
[312076217,1705601447249,-150.91,0.00033,2]
[312076218,1705601447259,-150.91,0.00033,2]
[312076219,1705601447268,-150.91,0.00033,2]
[312076220,1705601447277,-150.91,0.00033,2]
[312076221,1705601447287,-150.91,0.00033,2]
[312076222,1705601447296,-150.91,0.00033,2]
[312076223,1705601447306,-150.91,0.00033,2]
[312076224,1705601447316,-150.91,0.00033,2]
[312076225,1705601447326,-150.91,0.00033,2]
[312076226,1705601447335,-150.91,0.00033,2]
[312076227,1705601447345,-150.91,0.00033,2]
[312076228,1705601447353,-150.91,0.00033,2]
[312076229,1705601447363,-150.91,0.00033,2]
[312076230,1705601447372,-150.91,0.00033,2]
[312076231,1705601447381,-150.91,0.00033,2]
[312076232,1705601447390,-150.91,0.00033,2]
[312076233,1705601447400,-150.91,0.00033,2]
[312076234,1705601447410,-150.91,0.00033,2]
[312076235,1705601447424,-150.91,0.00033,2]
[312076236,1705601447433,-150.91,0.00033,2]
[312076237,1705601447442,-150.91,0.00033,2]
[312076238,1705601447452,-150.91,0.00033,2]
[312076239,1705601447461,-150.91,0.00033,2]
[312076240,1705601447470,-150.91,0.00033,2]
[312076241,1705601447479,-150.91,0.00033,2]
[312076242,1705601447487,-150.91,0.00033,2]
[312076243,1705601447496,-150.91,0.00033,2]
[312076244,1705601447505,-150.91,0.00033,2]
[312076245,1705601447515,-150.91,0.00033,2]
[312076246,1705601447525,-150.91,0.00033,2]
[312076247,1705601447535,-150.91,0.00033,2]
[312076248,1705601447544,-150.91,0.00033,2]
[312076249,1705601447554,-150.91,0.00033,2]
[312076250,1705601447563,-150.91,0.00033,2]
[312076251,1705601447572,-150.91,0.00033,2]
[312076252,1705601447581,-150.91,0.00033,2]
[312076253,1705601447590,-150.91,0.00033,2]
[312076254,1705601447599,-150.91,0.00033,2]
[312076255,1705601447609,-152.0,0.00033025,3]
[312076256,1705601447618,-150.0,0.00033165,2]
[312076257,1705601447627,-1000.0,0.000333,3]
[312076258,1705601447636,-1000.0,0.00033325,7]
[312076259,1705601447646,-210.0,0.00033408,20]
[312076260,1705601447655,-203.0,0.0003344,2]
[312076261,1705601447664,-203.0,0.0003344,2]
[312076262,1705601447675,-476.3,0.00033453,2]
[312076263,1705601447684,-2000.0,0.00033454,2]
[312076264,1705601447692,-363.81551046,0.000335,4]
[312076265,1705601447701,-727.96735596,0.000335,2]
[312076266,1705601447710,-152.0,0.000335,2]
[312076267,1705601447720,-4716.91,0.000335,2]
[312076268,1705601447729,-4716.91,0.000335,2]
[312076269,1705601447738,-4716.91,0.000335,2]
[312076270,1705601447749,-4716.91,0.000335,2]
[312076271,1705601447758,-4716.91,0.000335,2]
[312076272,1705601447767,-4716.91,0.000335,2]
[312076273,1705601447776,-4716.91,0.000335,2]
[312076274,1705601447785,-4716.91,0.000335,2]
[312076275,1705601447794,-4716.91,0.000335,2]
[312076276,1705601447803,-4716.91,0.000335,2]
[312076277,1705601447813,-4716.91,0.000335,2]
[312076278,1705601447822,-4716.91,0.000335,2]
[312076279,1705601447831,-4716.91,0.000335,2]
[312076280,1705601447841,-4716.91,0.000335,2]
[312076281,1705601447851,-4716.91,0.000335,2]
[312076282,1705601447860,-4716.91,0.000335,2]
[312076283,1705601447869,-4716.91,0.000335,2]
[312076284,1705601447880,-4716.91,0.000335,2]
[312076285,1705601447889,-4716.91,0.000335,2]
[312076286,1705601447898,-4716.91,0.000335,2]
[312076287,1705601447908,-871.39,0.00033609,2]
[312076288,1705601447919,-22355.93032834,0.0003366,2]
[312076289,1705601447929,-1138.0,0.00033756,2]
[312076290,1705601447938,-153.84,0.0003379,2]
[312076291,1705601447948,-161.83772009,0.00033809,2]
[312076292,1705601447957,-2260.0,0.00033809,2]
[312076293,1705601447967,-2447.159,0.00033809,2]
[312076294,1705601447977,-1029.0,0.00033809,2]
[312076295,1705601447988,-2000.0,0.00033854,11]
[312076296,1705601447997,-150.0,0.00033886,2]
[312076297,1705601448007,-373.68718079,0.00033896,4]
[312076298,1705601448016,-207.78272895,0.00033896,4]
[312076299,1705601448025,-542.58158419,0.00033896,4]
[312076300,1705601448035,-207.78983059,0.00033896,4]
[312076301,1705601448044,-460.22942243,0.00033896,4]
[312076302,1705601448054,-2263.98614879,0.00033899,4]
[312076303,1705601448064,-3854.6139209,0.000339,2]
[312076304,1705601448076,-3854.6139209,0.000339,2]
[312076305,1705601448085,-3854.6139209,0.000339,2]
[312076306,1705601448277,-3854.6139209,0.000339,2]
[312076307,1705601448287,-3854.6139209,0.000339,2]
[312076308,1705601448296,-3854.6139209,0.000339,2]
[312076309,1705601448306,-3854.6139209,0.000339,2]
[312076310,1705601448315,-3854.6139209,0.000339,2]
[312076311,1705601448325,-3854.6139209,0.000339,2]
[312076312,1705601448334,-3854.6139209,0.000339,2]
[312076313,1705601448343,-3854.6139209,0.000339,2]
[312076314,1705601448353,-3854.6139209,0.000339,2]
[312076315,1705601448362,-298.782,0.00033939,2]
[312076316,1705601448372,-100000.0,0.00034,4]
[312076317,1705601448382,-500.0,0.00034,2]
[312076318,1705601448391,-1000.0,0.00034,4]
[312076319,1705601448400,-1180.96509048,0.00034,4]
[312076320,1705601448409,-155.0,0.00034,4]
[312076321,1705601448421,-13812.37995314,0.00034,2]
[312076322,1705601448430,-2006.0,0.00034,2]
[312076323,1705601448439,-1550.0,0.00034,3]
[312076324,1705601448449,-4706.671699,0.00034,2]
[312076325,1705601448458,-1000.0,0.00034,4]
[312076326,1705601448467,-200.23066795,0.00034,2]
[312076327,1705601448477,-1000.0,0.00034,4]
[312076328,1705601448486,-232.321512,0.00034,7]
[312076329,1705601448496,-200.0,0.00034,2]
[312076330,1705601448505,-150.0,0.00034,6]
[312076331,1705601448515,-1000.0,0.00034,7]
[312076332,1705601448524,-75000.0,0.00034055,15]
[312076333,1705601448534,-1000.0,0.000341,7]
[312076334,1705601448543,-1000.0,0.000342,2]
[312076335,1705601448553,-1000.0,0.000342,2]
[312076336,1705601448563,-1000.0,0.000342,7]
[312076337,1705601448573,-6565.0,0.000342,2]
[312076338,1705601448583,-2834.4459236,0.00034227,2]
[312076339,1705601448593,-401.69,0.00034227,2]
[312076340,1705601448602,-1009.27,0.00034227,2]
[312076341,1705601448612,-401.69,0.00034227,2]
[312076342,1705601448621,-401.69,0.00034227,2]
[312076343,1705601448630,-401.69,0.00034227,2]
[312076344,1705601448640,-941.24,0.00034227,2]
[312076345,1705601448649,-941.24,0.00034227,2]
[312076346,1705601448658,-401.69,0.00034227,2]
[312076347,1705601448669,-941.24,0.00034227,2]
[312076348,1705601448679,-401.69,0.00034227,2]
[312076349,1705601448688,-941.24,0.00034227,2]
[312076350,1705601448698,-941.24,0.00034227,2]
[312076351,1705601448707,-941.24,0.00034227,2]
[312076352,1705601448716,-941.24,0.00034227,2]
[312076353,1705601448726,-941.24,0.00034227,2]
[312076354,1705601448735,-941.24,0.00034227,2]
[312076355,1705601448745,-666.0,0.00034246,2]
[312076356,1705601448754,-300.0,0.00034247,10]
[312076357,1705601448764,-155.0,0.00034247,2]
[312076358,1705601448773,-399.94,0.0003425,2]
[312076359,1705601448783,-401.38,0.0003425,2]
[312076360,1705601448792,-401.69,0.0003425,2]
[312076361,1705601448802,-401.69,0.0003425,2]
[312076362,1705601448812,-401.69,0.0003425,2]
[312076363,1705601448821,-401.69,0.0003425,2]
[312076364,1705601448830,-401.69,0.0003425,2]
[312076365,1705601448840,-1883.51,0.0003425,2]
[312076366,1705601448850,-801.37,0.0003425,2]
[312076367,1705601448859,-941.24,0.0003425,2]
[312076368,1705601448869,-941.24,0.0003425,2]
[312076369,1705601448878,-941.24,0.0003425,2]
[312076370,1705601448888,-941.24,0.0003425,2]
[312076371,1705601448897,-941.24,0.0003425,2]
[312076372,1705601448907,-1869.1,0.0003425,2]
[312076373,1705601448920,-93622.0,0.00034251,2]
[312076374,1705601448930,-937.0,0.00034251,2]
[312076375,1705601448939,-1667.120566,0.000343,7]
[312076376,1705601448949,-152.48,0.000344,2]
[312076377,1705601448960,-152.48,0.000344,2]
[312076378,1705601448970,-157.81,0.000344,2]
[312076379,1705601448980,-157.81,0.000344,2]
[312076380,1705601448989,-157.81,0.000344,2]
[312076381,1705601448999,-157.81,0.000344,2]
[312076382,1705601449008,-157.81,0.000344,2]
[312076383,1705601449018,-157.81,0.000344,2]
[312076384,1705601449027,-1105.65174034,0.00034405,6]
[312076385,1705601449037,-1105.65174031,0.00034405,6]
[312076386,1705601449046,-1105.65174031,0.00034405,6]
[312076387,1705601449056,-4424.46167598,0.000345,2]
[312076388,1705601449065,-150.0,0.000345,6]
[312076389,1705601449077,-200.0,0.00034512,2]
[312076390,1705601449086,-37519.452931,0.0003458,2]
[312076391,1705601449096,-871.39,0.00034587,2]